bitfinex/quotes_BTCUSD_20250226
["timestamp","ask_amount","ask_price","bid_price","bid_amount"]
[1740607361751,0.176089,85184.0,85183.0,1.57407579]
[1740607362466,0.002,85184.0,85183.0,1.57407579]
[1740607362875,0.002,85184.0,85183.0,1.66391664]
[1740607363078,0.234713,85211.0,85183.0,1.66391664]
[1740607363079,0.01576,85253.0,85224.0,0.00376825]
[1740607363356,0.175998,85228.0,85227.0,0.02156825]
[1740607363517,0.175998,85228.0,85227.0,0.02056825]
[1740607364264,0.410546,85252.0,85251.0,0.0168]
[1740607364439,0.410546,85252.0,85251.0,0.02056825]
[1740607365487,0.410546,85252.0,85251.0,0.02069055]
[1740607365684,0.410546,85252.0,85251.0,0.01969055]
[1740607367521,0.405546,85252.0,85251.0,0.01969055]
[1740607367882,0.405546,85252.0,85251.0,0.0159223]
[1740607368267,0.405546,85252.0,85251.0,0.01969055]
[1740607368662,0.405546,85252.0,85251.0,0.0001223]
[1740607369743,0.405546,85252.0,85251.0,0.01969055]
[1740607370185,0.42396455,85252.0,85251.0,0.0001223]
[1740607372238,0.42396455,85252.0,85251.0,0.0159223]
[1740607372448,0.42396455,85252.0,85251.0,0.01969055]
[1740607373207,0.42396455,85252.0,85251.0,0.0001223]
[1740607373378,0.42396455,85252.0,85251.0,0.01969055]
[1740607375327,0.38236639,85252.0,85251.0,0.01969055]
[1740607375529,0.38236639,85252.0,85251.0,0.0159223]
[1740607375530,0.44410413,85252.0,85251.0,0.0159223]
[1740607375731,0.38236639,85252.0,85251.0,0.0159223]
[1740607375931,0.38236639,85252.0,85251.0,0.0001223]
[1740607377185,0.38236639,85252.0,85251.0,0.01969055]
[1740607377483,0.38236639,85252.0,85251.0,0.00389055]
[1740607377719,0.38236639,85252.0,85251.0,0.0159223]
[1740607378466,0.38236639,85252.0,85251.0,0.0001223]
[1740607378666,0.37990805,85252.0,85251.0,0.01969055]
[1740607379189,0.3614895,85252.0,85251.0,0.0001223]
[1740607379511,0.3614895,85252.0,85251.0,0.01969055]
[1740607379916,0.000423,85258.0,85251.0,0.01969055]
[1740607379917,0.000423,85258.0,85257.0,0.01956825]
[1740607380123,0.176359,85258.0,85257.0,0.01814763]
[1740607380658,0.1462173,85258.0,85257.0,0.01814763]
[1740607381359,0.234576,85260.0,85257.0,0.01814763]
[1740607381562,0.1763366,85269.0,85268.0,0.01814763]
[1740607382124,0.1763366,85269.0,85265.0,0.01437938]
[1740607382125,0.0004236,85269.0,85265.0,0.01437938]
[1740607382259,0.17592,85266.0,85265.0,0.01437938]
[1740607382457,0.0004236,85269.0,85251.0,0.0071223]
[1740607382458,0.234568,85264.0,85251.0,0.0071223]
[1740607382669,0.175938,85257.0,85256.0,0.01714763]
[1740607382874,0.13261563,85257.0,85256.0,0.01714763]
[1740607383072,0.234582,85258.0,85257.0,0.00376825]
[1740607383073,0.175936,85258.0,85257.0,0.00376825]
[1740607383279,0.175948,85252.0,85251.0,0.0071223]
[1740607384283,0.504248,85252.0,85251.0,0.0071223]
[1740607384533,0.504248,85252.0,85210.0,0.00376825]
[1740607384534,0.01623175,85239.0,85210.0,0.00376825]
[1740607384736,0.176019,85218.0,85217.0,0.01714763]
[1740607385249,0.176019,85218.0,85212.0,0.0778]
[1740607385250,0.234648,85234.0,85233.0,0.01714763]
[1740607385454,0.410593,85243.0,85242.0,0.01714763]
[1740607385716,0.0184237,85245.0,85244.0,0.01714763]
[1740607386046,0.0184237,85245.0,85244.0,0.01878975]
[1740607386458,0.0184237,85245.0,85244.0,0.02560953]
[1740607386659,0.01249964,85245.0,85244.0,0.02396741]
[1740607386888,0.234585,85257.0,85245.0,0.01337938]
[1740607386889,0.11649968,85250.0,85245.0,0.01337938]
[1740607387137,0.1763366,85269.0,85268.0,0.01714763]
[1740607387518,0.0004236,85269.0,85268.0,0.01714763]
[1740607387742,8e-05,85300.0,85293.0,0.01337938]
[1740607387857,0.410327,85298.0,85297.0,0.01337938]
[1740607388058,0.175872,85289.0,85288.0,0.01337938]
[1740607388258,0.175929,85300.0,85299.0,0.01337938]
[1740607388463,0.175929,85300.0,85299.0,0.01714763]
[1740607388663,8e-05,85300.0,85299.0,0.01714763]
[1740607389094,0.00049152,85300.0,85299.0,0.01714763]
[1740607390391,0.0188969,85300.0,85299.0,0.01878852]
[1740607390536,0.0188969,85300.0,85299.0,0.03486235]
[1740607391442,0.1947459,85300.0,85299.0,0.03486235]
[1740607391643,0.01879829,85300.0,85299.0,0.04847876]
[1740607392182,0.01879829,85300.0,85299.0,0.04471051]
[1740607392431,0.01879829,85300.0,85299.0,0.03509938]
[1740607392641,0.01879829,85300.0,85299.0,0.04847876]
[1740607392842,0.01879829,85300.0,85299.0,0.03133113]
[1740607392843,0.08515472,85300.0,85299.0,0.03133113]
[1740607393118,0.01879829,85300.0,85299.0,0.03486235]
[1740607393496,0.01879829,85300.0,85299.0,0.0310941]
[1740607393842,0.00039291,85300.0,85299.0,0.0310941]
[1740607393976,0.00039291,85300.0,85299.0,0.01771472]
[1740607394176,0.00039291,85300.0,85289.0,0.00376825]
[1740607394177,0.23486091,85300.0,85289.0,0.00376825]
[1740607394377,0.175884,85283.0,85282.0,0.01337938]
[1740607394562,0.234509,85285.0,85280.0,0.00376825]
[1740607394769,0.234509,85285.0,85283.0,0.01714763]
[1740607394770,0.175882,85284.0,85283.0,0.01714763]
[1740607395020,0.175882,85284.0,85258.0,0.00164179]
[1740607395021,0.03529424,85312.0,85305.0,0.00376825]
[1740607395326,0.410268,85310.0,85309.0,0.01714763]
[1740607396334,0.410268,85310.0,85309.0,0.01726996]
[1740607397808,0.0004234,85328.0,85323.0,0.00376825]
[1740607397809,0.1830706,85324.0,85323.0,0.00376825]
[1740607398019,0.1830706,85324.0,85323.0,0.01714763]
[1740607398382,0.0072706,85324.0,85323.0,0.01714763]
[1740607398763,0.0771,85368.0,85341.0,0.01337938]
[1740607398764,0.175763,85342.0,85341.0,0.01337938]
[1740607398974,0.049,85377.0,85365.0,0.01337938]
[1740607398975,0.234279,85369.0,85365.0,0.01337938]
[1740607399145,0.175705,85370.0,85369.0,0.01337938]
[1740607399354,0.175705,85370.0,85369.0,0.01714763]
[1740607400189,0.17527256,85370.0,85369.0,0.01726996]
[1740607400723,0.4172356,85373.0,85372.0,0.01714763]
[1740607400936,0.40026701,85373.0,85372.0,0.01714763]
[1740607401137,0.175699,85373.0,85372.0,0.01714763]
[1740607401345,0.19408998,85373.0,85372.0,0.01714763]
[1740607401537,0.234207,85395.0,85372.0,0.01714763]
[1740607401538,0.234179,85405.0,85391.0,0.01714763]
[1740607401665,0.175659,85393.0,85391.0,0.01714763]
[1740607402062,0.234179,85405.0,85391.0,0.01714763]
[1740607402605,0.0072706,85421.0,85391.0,0.58658682]
[1740607402831,0.2414066,85421.0,85391.0,0.65134763]
[1740607402983,0.0072706,85421.0,85395.0,0.23280163]
[1740607403183,0.0072706,85421.0,85414.0,0.21276263]
[1740607403429,0.0072706,85421.0,85420.0,0.21274963]
[1740607403763,0.000423,85456.0,85449.0,0.195543]
[1740607403764,0.23405373,85450.0,85449.0,0.195543]
[1740607403949,0.18405373,85450.0,85449.0,0.195543]
[1740607404179,0.11595373,85450.0,85449.0,0.195543]
[1740607404380,0.000423,85456.0,85444.0,0.00871819]
[1740607404525,0.000423,85456.0,85454.0,0.019]
[1740607404751,0.000423,85456.0,85454.0,0.00163795]
[1740607405102,0.000423,85456.0,85455.0,0.019]
[1740607405301,0.1037247,85460.0,85457.0,0.018]
[1740607405508,0.1037247,85460.0,85455.0,0.01747534]
[1740607405509,0.175528,85456.0,85455.0,0.01747534]
[1740607405994,0.177528,85456.0,85455.0,0.01747534]
[1740607406222,0.197528,85456.0,85455.0,0.01747534]
[1740607406551,0.2024223,85456.0,85455.0,0.01747534]
[1740607406758,0.0048943,85456.0,85455.0,0.01747534]
[1740607407020,0.022,85455.0,85454.0,0.002]
[1740607407214,0.1814223,85456.0,85454.0,0.002]
[1740607407420,0.0058943,85456.0,85454.0,0.002]
[1740607407645,0.0048943,85456.0,85455.0,0.018]
[1740607407861,0.0058943,85456.0,85455.0,0.01963771]
[1740607407989,0.0058943,85456.0,85455.0,0.00163771]
[1740607408193,0.0058943,85456.0,85455.0,0.94228982]
[1740607408398,0.022,85481.0,85451.0,0.018]
[1740607408623,0.233972,85480.0,85453.0,0.018]
[1740607408825,0.002,85481.0,85454.0,0.00163772]
[1740607409054,0.175529,85456.0,85434.0,0.018]
[1740607409304,0.00268067,85485.0,85434.0,0.018]
[1740607409305,0.175563,85439.0,85434.0,0.0016382]
[1740607409424,0.197563,85439.0,85404.0,0.5478]
[1740607409743,0.197563,85439.0,85405.0,0.00163859]
[1740607409944,0.197563,85439.0,85409.0,0.175624]
[1740607410155,0.195574,85434.0,85410.0,0.00163865]
[1740607410376,0.197574,85434.0,85401.0,0.00163864]
[1740607410579,0.197574,85434.0,85402.0,0.00163875]
[1740607410760,0.175574,85434.0,85403.0,0.018]
[1740607410960,0.021,85456.0,85414.0,0.018]
[1740607411164,0.02,85453.0,85423.0,0.018]
[1740607411391,0.175572,85435.0,85406.0,0.5478]
[1740607411627,0.175572,85435.0,85373.0,0.8593]
[1740607411628,0.022,85434.0,85391.0,0.018]
[1740607411794,0.022,85434.0,85392.0,0.00163891]
[1740607412006,0.003,85434.0,85413.0,0.035228]
[1740607412342,0.001,85434.0,85414.0,0.00163869]
[1740607412559,0.176574,85434.0,85414.0,0.00163869]
[1740607412699,0.176574,85434.0,85401.0,0.00163861]
[1740607412915,0.001,85434.0,85408.0,0.018]
[1740607413279,0.001,85434.0,85433.0,0.20852914]
[1740607413280,0.0008,85434.0,85433.0,0.20852914]
[1740607413446,0.0008,85434.0,85433.0,0.21016708]
[1740607413657,0.0008,85434.0,85433.0,0.00205019]
[1740607414142,0.0008,85434.0,85433.0,0.40944315]
[1740607414335,0.01837901,85459.0,85440.0,0.018]
[1740607414538,0.01837901,85459.0,85446.0,0.018]
[1740607414737,0.01837901,85459.0,85433.0,0.3752644]
[1740607414738,0.01837901,85459.0,85458.0,0.175524]
[1740607414909,0.01837901,85459.0,85458.0,0.5478]
[1740607415108,0.234063,85447.0,85434.0,0.5658]
[1740607415426,0.234063,85447.0,85433.0,0.00341229]
[1740607415427,0.175574,85434.0,85433.0,0.00341229]
[1740607415610,0.002,85446.0,85433.0,0.00341229]
[1740607415814,0.175574,85434.0,85433.0,0.00041229]
[1740607416014,0.195574,85434.0,85433.0,0.00041229]
[1740607416171,0.197574,85434.0,85433.0,0.00041229]
[1740607416382,0.175558,85442.0,85433.0,0.00041229]
[1740607416749,0.175574,85434.0,85433.0,0.00041229]
[1740607417277,0.175572,85435.0,85433.0,0.00041229]
[1740607417475,0.02,85443.0,85433.0,0.00041229]
[1740607417476,0.175574,85434.0,85433.0,0.00041229]
[1740607417685,0.197574,85434.0,85433.0,0.00041229]
[1740607417886,0.00587783,85434.0,85433.0,0.00041229]
[1740607418243,0.021,85446.0,85433.0,0.00741229]
[1740607418420,0.00587783,85434.0,85433.0,0.00741229]
[1740607418621,0.02,85441.0,85433.0,0.00741229]
[1740607418823,0.002,85439.0,85433.0,0.00041229]
[1740607419000,0.001,85434.0,85433.0,0.00741229]
[1740607419347,0.001,85434.0,85433.0,0.55521229]
[1740607419503,0.02,85478.0,85442.0,0.018]
[1740607419714,0.175496,85472.0,85445.0,0.018]
[1740607419912,0.175511,85465.0,85452.0,0.017]
[1740607420119,0.175504,85468.0,85452.0,0.017]
[1740607420297,0.175504,85468.0,85446.0,0.781863]
[1740607420298,0.175504,85468.0,85451.0,0.017]
[1740607420515,0.02,85477.0,85452.0,0.54943792]
[1740607420516,0.233994,85473.0,85452.0,0.54943792]
[1740607420718,0.02,85518.0,85451.0,0.017]
[1740607420719,0.02268067,85485.0,85458.0,0.175524]
[1740607420919,0.175493,85474.0,85458.0,0.7249617]
[1740607421121,0.175494,85473.0,85458.0,0.723324]
[1740607421320,0.233973,85480.0,85458.0,0.723324]
[1740607421536,0.175494,85473.0,85458.0,0.723324]
[1740607421973,0.02268067,85485.0,85458.0,0.723324]
[1740607422271,0.01937901,85459.0,85458.0,0.723324]
[1740607422573,0.01937901,85459.0,85458.0,0.5478]
[1740607422574,0.01837901,85459.0,85458.0,0.5478]
[1740607422797,0.02,85527.0,85446.0,0.01454085]
[1740607422798,0.01932,85530.0,85492.0,0.02]
[1740607423102,0.175477,85481.0,85480.0,0.02]
[1740607423260,0.0175477,85481.0,85469.0,0.019]
[1740607423462,0.37485211,85517.0,85458.0,0.007]
[1740607423463,0.175514,85463.0,85462.0,0.019]
[1740607423878,0.175522,85459.0,85458.0,0.007]
[1740607424086,0.175522,85459.0,85458.0,0.02612233]
[1740607424241,0.175522,85459.0,85458.0,0.04512233]
[1740607424847,0.233973,85480.0,85479.0,0.038]
[1740607425106,0.409452,85480.0,85479.0,0.038]
[1740607425344,0.409452,85480.0,85479.0,0.019]
[1740607425532,0.175496,85472.0,85471.0,0.02]
[1740607425727,0.1755,85470.0,85469.0,0.007]
[1740607425874,0.175518,85461.0,85460.0,0.04]
[1740607426273,0.175518,85461.0,85460.0,0.02]
[1740607426492,0.234021,85463.0,85458.0,0.00012233]
[1740607426725,0.175522,85459.0,85458.0,0.00012233]
[1740607427199,0.001,85461.0,85460.0,0.04]
[1740607427403,0.176518,85461.0,85460.0,0.04]
[1740607427513,0.001,85461.0,85460.0,0.04]
[1740607427925,0.001,85461.0,85460.0,0.04163783]
[1740607428122,0.001,85461.0,85460.0,0.04]
[1740607428367,0.176518,85461.0,85460.0,0.04]
[1740607428567,0.175522,85459.0,85458.0,0.00012233]
[1740607428745,0.218548,85461.0,85458.0,0.00012233]
[1740607428950,0.175522,85459.0,85458.0,0.00012233]
[1740607429147,0.175522,85459.0,85458.0,0.00712233]
[1740607429633,0.175522,85459.0,85458.0,0.00012233]
[1740607429837,0.175487,85476.0,85475.0,0.02]
[1740607430173,0.175442,85498.0,85497.0,0.02]
[1740607430372,0.175442,85498.0,85497.0,0.04]
[1740607430737,0.01837323,85499.0,85487.0,0.02]
[1740607430939,0.40673577,85481.0,85480.0,0.04]
[1740607431145,0.175448,85495.0,85494.0,0.04]
[1740607431388,0.175448,85495.0,85494.0,0.02]
[1740607431721,0.175448,85495.0,85494.0,0.04012233]
[1740607432137,0.000422,85498.0,85494.0,0.04012233]
[1740607432323,0.175864,85498.0,85497.0,0.04]
[1740607432667,0.000422,85498.0,85497.0,0.04]
[1740607432893,0.175864,85498.0,85497.0,0.047]
[1740607433278,0.000422,85498.0,85497.0,0.047]
[1740607433494,0.00519009,85526.0,85522.0,0.02]
[1740607433655,0.233844,85527.0,85526.0,0.02]
[1740607433860,0.175383,85527.0,85523.0,0.02]
[1740607434305,0.175424,85507.0,85506.0,0.02]
[1740607434509,0.175424,85507.0,85506.0,0.04]
[1740607434715,0.175424,85507.0,85506.0,0.04012233]
[1740607435116,0.233895,85509.0,85508.0,0.02]
[1740607435315,0.409315,85509.0,85508.0,0.04]
[1740607435785,0.17542,85509.0,85508.0,0.04]
[1740607436117,0.467601,85543.0,85506.0,0.00012233]
[1740607436118,0.350709,85541.0,85518.0,0.02]
[1740607436313,0.467563,85550.0,85518.0,0.02]
[1740607436516,0.175399,85519.0,85518.0,0.04]
[1740607437842,0.175383,85527.0,85526.0,0.02]
[1740607438012,0.175383,85527.0,85526.0,0.04]
[1740607438715,0.18057637,85527.0,85526.0,0.04]
[1740607439266,0.18057637,85527.0,85526.0,0.047]
[1740607439563,0.18057637,85527.0,85526.0,0.04]
[1740607439764,0.18057637,85527.0,85526.0,0.02]
[1740607439941,0.18057637,85527.0,85526.0,0.047]
[1740607440346,0.18057637,85527.0,85526.0,0.027]
[1740607440690,0.18057637,85527.0,85526.0,0.007]
[1740607441050,0.175399,85519.0,85518.0,0.04]
[1740607441393,0.087697,85519.0,85508.0,0.02]
[1740607441570,0.087697,85519.0,85506.0,0.00012233]
[1740607441571,0.175424,85507.0,85506.0,0.00012233]
[1740607441948,0.175424,85507.0,85461.0,0.5478]
[1740607441949,0.175479,85480.0,85477.0,0.02]
[1740607442156,0.175479,85480.0,85479.0,0.00012244]
[1740607442370,0.18083186,85480.0,85479.0,0.00012244]
[1740607442573,0.31530395,85480.0,85479.0,0.00012244]
[1740607442797,0.175524,85458.0,85446.0,0.04]
[1740607442996,0.175547,85447.0,85446.0,0.04]
[1740607443200,0.175547,85447.0,85446.0,0.04012249]
[1740607443403,0.175547,85447.0,85446.0,0.02012249]
[1740607443603,0.26850268,85447.0,85446.0,0.00012249]
[1740607443801,0.18073188,85447.0,85446.0,0.00012249]
[1740607444139,0.30583188,85447.0,85446.0,0.00012249]
[1740607444262,0.175574,85434.0,85433.0,0.000844]
[1740607444464,0.13028488,85447.0,85381.0,0.0073041]
[1740607444465,0.175596,85423.0,85390.0,0.02]
[1740607444684,0.175596,85423.0,85422.0,0.10425194]
[1740607444886,0.175596,85423.0,85381.0,0.0073041]
[1740607444887,0.0252,85422.0,85386.0,0.02]
[1740607445124,0.175681,85382.0,85381.0,0.0073041]
[1740607445605,0.18086588,85382.0,85381.0,0.0072041]
[1740607445777,0.23026588,85382.0,85381.0,0.0072041]
[1740607446004,0.23026588,85382.0,85378.0,0.10383965]
[1740607446005,0.175687,85379.0,85378.0,0.10383965]
[1740607446232,0.24591522,85379.0,85378.0,0.00383965]
[1740607446453,0.175699,85373.0,85358.0,7.054e-05]
[1740607446656,0.175699,85373.0,85358.0,0.04007054]
[1740607446853,0.175699,85373.0,85372.0,0.00096592]
[1740607447121,0.175699,85373.0,85372.0,0.04096592]
[1740607447397,0.175699,85373.0,85372.0,0.00096592]
[1740607447926,0.175699,85373.0,85358.0,7.054e-05]
[1740607447927,0.175728,85359.0,85358.0,7.054e-05]
[1740607448136,0.175751,85348.0,85319.0,0.02]
[1740607448544,0.17607176,85348.0,85321.0,0.02]
[1740607448737,0.17607176,85348.0,85347.0,0.0009668]
[1740607448942,0.175751,85348.0,85347.0,0.0009668]
[1740607450387,0.175781,85333.0,85332.0,0.0073041]
[1740607450585,0.175781,85333.0,85332.0,0.00742671]
[1740607450827,0.175829,85310.0,85309.0,0.0008454]
[1740607450960,0.175829,85310.0,85309.0,0.00096818]
[1740607451361,0.175847,85301.0,85277.0,0.02]
[1740607451782,0.175847,85301.0,85290.0,0.02]
[1740607451986,0.175847,85301.0,85297.0,0.0050079]
[1740607453630,0.175847,85301.0,85300.0,0.00308]
[1740607454046,0.19425748,85301.0,85300.0,8e-05]
[1740607454252,0.26057443,85301.0,85300.0,8e-05]
[1740607454410,0.26057443,85301.0,85300.0,0.00708]
[1740607454745,0.26057443,85301.0,85300.0,8e-05]
[1740607455059,0.26057443,85301.0,85297.0,0.0050079]
[1740607455060,0.175854,85298.0,85297.0,0.0050079]
[1740607455261,0.62359319,85298.0,85297.0,0.0050079]
[1740607455470,0.62359319,85298.0,85261.0,0.0008438]
[1740607455471,0.175858,85296.0,85261.0,0.0008438]
[1740607455707,0.1679981,85262.0,85261.0,0.0008438]
[1740607456308,0.16837971,85262.0,85261.0,0.0008438]
[1740607456924,0.1679981,85262.0,85261.0,0.0008438]
[1740607457157,0.16812149,85262.0,85261.0,0.0008438]
[1740607457323,0.00012339,85262.0,85261.0,0.0408438]
[1740607457526,0.00012339,85262.0,85261.0,0.0278438]
[1740607457705,0.00012339,85262.0,85261.0,0.0478438]
[1740607458105,0.00012339,85262.0,85261.0,0.0208438]
[1740607458333,0.00012339,85262.0,85261.0,0.0078438]
[1740607458530,0.00012339,85262.0,85261.0,0.0028438]
[1740607458735,0.00051746,85262.0,85261.0,0.0028438]
[1740607459507,0.175936,85258.0,85257.0,0.000846]
[1740607459908,0.175936,85258.0,85244.0,0.0078575]
[1740607459909,0.175963,85245.0,85244.0,0.0078575]
[1740607460228,0.17635707,85245.0,85244.0,0.0078575]
[1740607460439,0.21745418,85245.0,85244.0,0.0078575]
[1740607460809,0.19438561,85245.0,85244.0,0.0078575]
[1740607461199,0.19477968,85245.0,85244.0,0.0078575]
[1740607461395,0.19677968,85245.0,85244.0,0.0078575]
[1740607462218,0.177963,85245.0,85244.0,0.0078575]
[1740607462421,0.177963,85245.0,85244.0,0.0079575]
[1740607462623,0.2426815,85245.0,85244.0,0.0079575]
[1740607462828,0.24107557,85245.0,85244.0,0.0079575]
[1740607463036,0.24107557,85245.0,85244.0,0.0109575]
[1740607463709,0.25949928,85245.0,85244.0,0.0079575]
[1740607464134,0.176006,85224.0,85223.0,0.0008456]
[1740607464319,0.55079445,85224.0,85223.0,0.0008456]
[1740607464557,0.55122148,85224.0,85223.0,0.0008456]
[1740607464961,0.176006,85224.0,85223.0,0.0008456]
[1740607465151,0.19443377,85224.0,85223.0,0.0008456]
[1740607465327,0.19455707,85224.0,85223.0,0.0008456]
[1740607465745,0.1761293,85224.0,85223.0,0.0008456]
[1740607465970,0.1761293,85224.0,85223.0,0.0208456]
[1740607466177,0.1761293,85224.0,85223.0,0.0408456]
[1740607466380,0.1791293,85224.0,85223.0,0.0208456]
[1740607466588,0.1791293,85224.0,85223.0,0.0408456]
[1740607466792,0.1761293,85224.0,85223.0,0.0408456]
[1740607466995,0.0001233,85224.0,85223.0,0.0896456]
[1740607467291,0.0001233,85224.0,85223.0,0.2656536]
[1740607467500,0.175924,85264.0,85263.0,0.02]
[1740607467730,0.0809,85306.0,85271.0,0.02]
[1740607467881,0.5487864,85681.0,85251.0,0.37478845]
[1740607467882,0.175887,85282.0,85281.0,0.04]
[1740607468453,0.00012211,85298.0,85286.0,0.04]
[1740607468648,0.000423,85348.0,85299.0,0.02]
[1740607468649,0.175849,85300.0,85299.0,0.02]
[1740607469041,0.175849,85300.0,85271.0,0.234544]
[1740607469042,0.175866,85292.0,85291.0,0.02]
[1740607469245,0.17587,85290.0,85289.0,0.04]
[1740607469844,0.410337,85296.0,85295.0,0.04]
[1740607470044,0.410337,85296.0,85274.0,0.175902]
[1740607470045,0.175899,85276.0,85275.0,0.5478]
[1740607470208,0.175913,85269.0,85268.0,0.1232]
[1740607470387,0.175913,85269.0,85268.0,0.1032]
[1740607470595,0.175913,85269.0,85268.0,0.12361152]
[1740607471059,0.0583883,85364.0,85296.0,0.02]
[1740607471299,0.175856,85297.0,85296.0,0.02]
[1740607471499,0.175835,85307.0,85306.0,0.02]
[1740607471699,0.175835,85307.0,85306.0,0.04]
[1740607472169,0.00044073,85337.0,85324.0,0.02]
[1740607472340,0.09377949,85395.0,85347.0,0.02]
[1740607472636,0.09377949,85395.0,85347.0,0.0885]
[1740607472637,0.00054499,85348.0,85347.0,0.0885]
[1740607473776,0.01896,85468.0,85381.0,0.02]
[1740607474014,0.409729,85422.0,85421.0,0.02]
[1740607474215,0.234122,85426.0,85421.0,0.02]
[1740607474216,0.234552,85423.0,85421.0,0.02]
[1740607474531,0.234552,85423.0,85420.0,0.02]
[1740607474532,0.175598,85422.0,85420.0,0.02]
[1740607474753,0.175613,85415.0,85414.0,0.02]
[1740607474959,0.234152,85415.0,85407.0,0.02]
[1740607475241,0.175644,85400.0,85399.0,0.02]
[1740607475418,0.234131,85422.0,85407.0,0.02]
[1740607475616,0.234131,85422.0,85391.0,0.37493775]
[1740607475617,0.00082998,85423.0,85422.0,0.0695]
[1740607475879,0.00082998,85423.0,85422.0,0.0895]
[1740607476078,0.01912,85504.0,85426.0,0.04]
[1740607476303,0.175588,85428.0,85426.0,0.04]
[1740607476433,0.00797948,85427.0,85426.0,0.04]
[1740607476985,0.00797948,85427.0,85426.0,0.02]
[1740607477188,0.0751,85523.0,85449.0,0.02]
[1740607477396,0.00797939,85480.0,85460.0,0.02]
[1740607477616,0.00797939,85480.0,85479.0,0.02]
[1740607477806,0.00797939,85480.0,85479.0,0.04]
[1740607478318,0.00012189,85480.0,85479.0,0.04]
[1740607478484,0.00098149,85480.0,85479.0,0.04]
[1740607478686,0.1758459,85507.0,85506.0,0.04]
[1740607479008,0.05825137,85592.0,85508.0,0.02]
[1740607479259,0.17542,85509.0,85508.0,0.02]
[1740607479664,0.17542,85509.0,85508.0,0.04]
[1740607479861,0.17542,85509.0,85508.0,0.02]
[1740607480067,0.350666,85552.0,85487.0,0.5478]
[1740607480068,0.175436,85501.0,85500.0,0.02]
[1740607480208,0.17544,85499.0,85498.0,0.02]
[1740607480406,0.17544,85499.0,85487.0,0.5478]
[1740607480407,0.000406,85518.0,85494.0,0.02]
[1740607480631,0.000406,85518.0,85501.0,0.02]
[1740607480843,0.33005403,85543.0,85509.0,0.02]
[1740607481065,0.175416,85511.0,85509.0,0.04]
[1740607481348,0.0344595,85542.0,85496.0,0.02]
[1740607481568,0.37493775,85534.0,85503.0,0.02]
[1740607481786,0.175448,85495.0,85494.0,0.04]
[1740607482379,0.233862,85521.0,85494.0,0.04]
[1740607482380,0.17543,85504.0,85502.0,0.02]
[1740607483005,0.467564,85550.0,85494.0,0.000406]
[1740607483006,0.175448,85495.0,85494.0,0.000406]
[1740607483349,0.175448,85495.0,85494.0,0.000506]
[1740607487014,0.0478,85548.0,85495.0,0.02]
[1740607487254,0.175407,85515.0,85514.0,0.02]
[1740607487467,1.168679,85567.0,85498.0,0.02]
[1740607487683,1.168679,85567.0,85510.0,0.02]
[1740607487887,0.175416,85511.0,85510.0,0.02]
[1740607488084,0.175416,85511.0,85494.0,0.000506]
[1740607488085,0.175411,85514.0,85513.0,0.02]
[1740607488638,0.01836158,85551.0,85530.0,0.04]
[1740607488860,0.01964,85590.0,85530.0,0.04]
[1740607488988,0.176544,85531.0,85530.0,0.04]
[1740607489939,0.176544,85531.0,85490.0,0.04]
[1740607489940,0.175397,85520.0,85519.0,0.02]
[1740607490116,0.233838,85529.0,85524.0,0.02]
[1740607490317,0.001169,85531.0,85511.0,0.02]
[1740607490640,0.175422,85508.0,85507.0,0.02]
[1740607491235,0.233878,85515.0,85507.0,0.02]
[1740607491458,0.175422,85508.0,85507.0,0.020406]
[1740607492478,0.175422,85508.0,85507.0,0.040406]
[1740607492840,0.1243,85557.0,85507.0,0.000406]
[1740607493041,0.175411,85513.0,85512.0,0.02]
[1740607493285,0.233879,85515.0,85508.0,0.02]
[1740607493286,0.17542,85509.0,85508.0,0.02]
[1740607493497,0.175422,85508.0,85507.0,0.020406]
[1740607494069,0.175401,85518.0,85517.0,0.02]
[1740607494278,0.233863,85521.0,85514.0,0.02]
[1740607494475,0.175422,85508.0,85507.0,0.000406]
[1740607498196,0.233892,85510.0,85507.0,0.000406]
[1740607498401,0.175422,85508.0,85507.0,0.000406]
[1740607499059,0.18996285,85508.0,85507.0,0.000406]
[1740607499177,0.26509294,85508.0,85507.0,0.000406]
[1740607500081,0.175448,85495.0,85455.0,0.02]
[1740607500279,0.175448,85495.0,85494.0,0.00022183]
[1740607500722,0.233923,85498.0,85494.0,0.00022183]
[1740607500723,0.0327,85545.0,85501.0,0.02]
[1740607500924,0.0824,85560.0,85506.0,0.02]
[1740607500925,0.175424,85507.0,85506.0,0.02]
[1740607501143,0.3283,85559.0,85527.0,0.02]
[1740607501444,0.3283,85559.0,85536.0,0.02]
[1740607501445,0.03283,85559.0,85536.0,0.02]
[1740607501664,0.03283,85559.0,85519.0,0.0453]
[1740607501665,0.175379,85529.0,85528.0,0.02]
[1740607501864,0.05890858,85580.0,85513.0,0.02]
[1740607502066,0.05890858,85580.0,85497.0,0.0472]
[1740607502067,0.37408087,85548.0,85507.0,0.02]
[1740607502194,0.37408087,85548.0,85467.0,0.09355904]
[1740607502195,0.37408087,85530.0,85491.0,0.02]
[1740607502424,0.01454085,85536.0,85486.0,0.02]
[1740607502425,0.175448,85495.0,85486.0,0.02]
[1740607502622,0.175418,85510.0,85509.0,0.02]
[1740607502845,0.00040625,85548.0,85525.0,0.02]
[1740607503046,0.175385,85526.0,85525.0,0.02]
[1740607503245,0.233754,85560.0,85537.0,0.02]
[1740607503516,0.175354,85541.0,85540.0,0.37408087]
[1740607503662,0.175354,85541.0,85540.0,0.39408087]
[1740607503861,0.3283,85574.0,85528.0,0.02]
[1740607503862,0.175379,85529.0,85528.0,0.02]
[1740607504061,0.00040625,85541.0,85516.0,0.3273]
[1740607504264,0.175411,85513.0,85512.0,0.04]
[1740607504465,0.175418,85510.0,85503.0,0.1015]
[1740607504790,0.17543,85504.0,85503.0,0.02]
[1740607504929,0.233906,85505.0,85497.0,0.02]